[Event "*** Titled Tuesday Blitz"]
[Site "Chess.com"]
[Date "2020.01.07"]
[Round "2"]
[White "Khalakhanov"]
[Black "BobanBogosavljevic"]
[Result "0-1"]
[WhiteElo "2342"]
[BlackElo "2733"]
[TimeControl "180+2"]
[EndTime "13:21:36 PST"]
[Termination "BobanBogosavljevic won by checkmate"]

1. e4 {[%clk 0:03:01.9]} 1... c5 {[%clk 0:02:59.9]} 2. Nc3 {[%clk 0:03:00]} 2...
Nc6 {[%clk 0:03:01.2]} 3. f4 {[%clk 0:03:00.9]} 3... g6 {[%clk 0:03:02]} 4. Nf3
{[%clk 0:03:02.3]} 4... Bg7 {[%clk 0:03:03.5]} 5. Bb5 {[%clk 0:03:03.6]} 5...
Nd4 {[%clk 0:03:04.1]} 6. O-O {[%clk 0:03:04]} 6... e6 {[%clk 0:03:01.6]} 7. e5
{[%clk 0:03:03.9]} 7... a6 {[%clk 0:02:57.7]} 8. Bd3 {[%clk 0:03:04.9]} 8... d5
{[%clk 0:02:53.9]} 9. exd6 {[%clk 0:03:04.8]} 9... Qxd6 {[%clk 0:02:50.4]} 10.
Ne4 {[%clk 0:03:04.6]} 10... Qc7 {[%clk 0:02:51.4]} 11. c3 {[%clk 0:03:02.1]}
11... Nxf3+ {[%clk 0:02:47.7]} 12. Qxf3 {[%clk 0:03:04]} 12... Ne7 {[%clk
0:02:48.8]} 13. Bc2 {[%clk 0:03:00.6]} 13... O-O {[%clk 0:02:48.9]} 14. d3
{[%clk 0:03:01.9]} 14... b6 {[%clk 0:02:43.9]} 15. Ng5 {[%clk 0:02:53.7]} 15...
Bb7 {[%clk 0:02:43.1]} 16. Qh3 {[%clk 0:02:54.4]} 16... h6 {[%clk 0:02:44.5]}
17. Ne4 {[%clk 0:02:37.9]} 17... Nf5 {[%clk 0:02:43.5]} 18. g4 {[%clk
0:02:34.9]} 18... Nd6 {[%clk 0:02:44]} 19. f5 {[%clk 0:02:22.8]} 19... exf5
{[%clk 0:02:20]} 20. Nxd6 {[%clk 0:02:16.4]} 20... Qxd6 {[%clk 0:02:17.4]} 21.
gxf5 {[%clk 0:02:17.7]} 21... Qc6 {[%clk 0:01:54.8]} 22. Bxh6 {[%clk 0:02:18.4]}
22... Bxh6 {[%clk 0:01:54.1]} 23. Bb3 {[%clk 0:01:46.4]} 23... Be3+ {[%clk
0:01:47]} 24. Rf2 {[%clk 0:01:45.2]} 24... Qh1# {[%clk 0:01:47.6]} 0-1

[Event "*** Titled Tuesday Blitz"]
[Site "Chess.com"]
[Date "2020.01.07"]
[Round "2"]
[White "Kumi29"]
[Black "shanemelaughcm"]
[Result "1-0"]
[WhiteElo "2517"]
[BlackElo "2279"]
[TimeControl "180+2"]
[EndTime "13:21:59 PST"]
[Termination "Kumi29 won by resignation"]

1. d4 {[%clk 0:03:01.9]} 1... e6 {[%clk 0:03:00.3]} 2. e4 {[%clk 0:03:02.4]}
2... c5 {[%clk 0:03:01.4]} 3. d5 {[%clk 0:03:03]} 3... exd5 {[%clk 0:03:02.4]}
4. exd5 {[%clk 0:03:04.2]} 4... d6 {[%clk 0:03:04.3]} 5. Nd2 {[%clk 0:03:00.9]}
5... Be7 {[%clk 0:03:05.9]} 6. Nc4 {[%clk 0:03:00.7]} 6... Nf6 {[%clk
0:03:06.8]} 7. a4 {[%clk 0:03:01]} 7... O-O {[%clk 0:03:07.4]} 8. h3 {[%clk
0:02:57.9]} 8... Na6 {[%clk 0:03:08.7]} 9. g4 {[%clk 0:02:52.9]} 9... Nc7 {[%clk
0:03:10]} 10. Bg2 {[%clk 0:02:53.8]} 10... a6 {[%clk 0:03:11.3]} 11. a5 {[%clk
0:02:53.1]} 11... Rb8 {[%clk 0:03:12.6]} 12. Ne2 {[%clk 0:02:50.7]} 12... Re8
{[%clk 0:03:09.5]} 13. O-O {[%clk 0:02:51.1]} 13... Bf8 {[%clk 0:03:10.2]} 14.
Ng3 {[%clk 0:02:50.3]} 14... g6 {[%clk 0:03:01.2]} 15. c3 {[%clk 0:02:48.6]}
15... Nd7 {[%clk 0:02:49.4]} 16. f4 {[%clk 0:02:37]} 16... Qh4 {[%clk
0:02:40.6]} 17. Qf3 {[%clk 0:02:29.5]} 17... b5 {[%clk 0:02:32.7]} 18. axb6
{[%clk 0:02:30.3]} 18... Nxb6 {[%clk 0:02:34.1]} 19. Nxb6 {[%clk 0:02:28.3]}
19... Rxb6 {[%clk 0:02:36]} 20. Kh2 {[%clk 0:02:21.1]} 20... Bb7 {[%clk
0:02:35.3]} 21. c4 {[%clk 0:02:19.6]} 21... Rb8 {[%clk 0:02:31.7]} 22. f5 {[%clk
0:02:10.8]} 22... Qe7 {[%clk 0:02:16.5]} 23. fxg6 {[%clk 0:02:07]} 23... fxg6
{[%clk 0:02:17.3]} 24. Ra3 {[%clk 0:02:03.4]} 24... Qg7 {[%clk 0:02:03]} 25. Re3
{[%clk 0:01:59.4]} 25... Ne8 {[%clk 0:01:59.6]} 26. Re6 {[%clk 0:01:55.3]} 26...
Bc8 {[%clk 0:01:57.3]} 27. Rxe8 {[%clk 0:01:56.2]} 27... Bxg4 {[%clk 0:01:57.1]}
28. Qxf8+ {[%clk 0:01:48]} 28... Qxf8 {[%clk 0:01:57.5]} 29. Rfxf8+ {[%clk
0:01:49.9]} 29... Kg7 {[%clk 0:01:58.8]} 30. Rxb8 {[%clk 0:01:49.4]} 1-0

[Event "*** Titled Tuesday Blitz"]
[Site "Chess.com"]
[Date "2020.01.07"]
[Round "2"]
[White "Bykov_Egor"]
[Black "ITheOnlyME"]
[Result "1-0"]
[WhiteElo "2617"]
[BlackElo "2321"]
[TimeControl "180+2"]
[EndTime "13:22:07 PST"]
[Termination "Bykov_Egor won by resignation"]

1. d4 {[%clk 0:03:01.9]} 1... d6 {[%clk 0:03:00.5]} 2. Nf3 {[%clk 0:03:02.1]}
2... g6 {[%clk 0:03:00.9]} 3. c4 {[%clk 0:03:03]} 3... Bg7 {[%clk 0:03:02.2]} 4.
Nc3 {[%clk 0:03:04.4]} 4... Nf6 {[%clk 0:03:03.7]} 5. e4 {[%clk 0:03:05.5]} 5...
O-O {[%clk 0:03:05.4]} 6. Be2 {[%clk 0:03:06.6]} 6... e5 {[%clk 0:03:07]} 7. O-O
{[%clk 0:03:07.6]} 7... Nh5 {[%clk 0:03:05.3]} 8. Bg5 {[%clk 0:03:04.3]} 8... f6
{[%clk 0:03:05.8]} 9. Be3 {[%clk 0:02:57.2]} 9... Nc6 {[%clk 0:03:07.2]} 10.
dxe5 {[%clk 0:02:43.2]} 10... dxe5 {[%clk 0:03:00.8]} 11. c5 {[%clk 0:02:40.3]}
11... Be6 {[%clk 0:02:47.8]} 12. Nd5 {[%clk 0:02:40.9]} 12... Ne7 {[%clk
0:02:39.3]} 13. Bc4 {[%clk 0:02:24.6]} 13... c6 {[%clk 0:02:38.9]} 14. Nxe7+
{[%clk 0:02:18.4]} 14... Qxe7 {[%clk 0:02:39.5]} 15. Qb3 {[%clk 0:02:15.5]}
15... Bxc4 {[%clk 0:02:35.6]} 16. Qxc4+ {[%clk 0:02:17.4]} 16... Kh8 {[%clk
0:02:37.2]} 17. Rfd1 {[%clk 0:02:14.4]} 17... Rfd8 {[%clk 0:02:36.8]} 18. h3
{[%clk 0:02:07.6]} 18... Nf4 {[%clk 0:02:32.6]} 19. Bxf4 {[%clk 0:02:07.6]}
19... exf4 {[%clk 0:02:33.9]} 20. b4 {[%clk 0:02:04.4]} 20... f5 {[%clk
0:02:32.1]} 21. Rxd8+ {[%clk 0:02:04.6]} 21... Rxd8 {[%clk 0:02:32.5]} 22. Re1
{[%clk 0:02:06]} 22... fxe4 {[%clk 0:02:21.3]} 23. Rxe4 {[%clk 0:02:05.4]} 23...
Qc7 {[%clk 0:02:17.1]} 24. Ng5 {[%clk 0:01:59.3]} 24... Rd1+ {[%clk 0:01:45.8]}
25. Kh2 {[%clk 0:02:00.2]} 25... Rd5 {[%clk 0:01:24.7]} 26. Re8+ {[%clk
0:01:57.7]} 26... Bf8 {[%clk 0:01:24.4]} 27. Rxf8+ {[%clk 0:01:58.8]} 27... Kg7
{[%clk 0:01:25.9]} 28. Ne6+ {[%clk 0:01:59.8]} 1-0

[Event "*** Titled Tuesday Blitz"]
[Site "Chess.com"]
[Date "2020.01.07"]
[Round "2"]
[White "valeriocarnicelli"]
[Black "Proteuo"]
[Result "0-1"]
[WhiteElo "2515"]
[BlackElo "2335"]
[TimeControl "180+2"]
[EndTime "13:22:09 PST"]
[Termination "Proteuo won by resignation"]

1. Nf3 {[%clk 0:03:01.9]} 1... Nf6 {[%clk 0:02:59.2]} 2. e3 {[%clk 0:02:54.1]}
2... d5 {[%clk 0:02:57.2]} 3. b3 {[%clk 0:02:43.6]} 3... e6 {[%clk 0:02:50.6]}
4. Bb2 {[%clk 0:02:44.7]} 4... Be7 {[%clk 0:02:51.6]} 5. c4 {[%clk 0:02:45.2]}
5... O-O {[%clk 0:02:51.2]} 6. Be2 {[%clk 0:02:45.6]} 6... c5 {[%clk 0:02:51.3]}
7. O-O {[%clk 0:02:43.9]} 7... Nc6 {[%clk 0:02:51.9]} 8. d4 {[%clk 0:02:44.7]}
8... cxd4 {[%clk 0:02:51.5]} 9. Nxd4 {[%clk 0:02:45.6]} 9... Nxd4 {[%clk
0:02:51.9]} 10. Qxd4 {[%clk 0:02:46.7]} 10... b6 {[%clk 0:02:50.9]} 11. Nc3
{[%clk 0:02:46.6]} 11... Bb7 {[%clk 0:02:51]} 12. cxd5 {[%clk 0:02:45.2]} 12...
Bc5 {[%clk 0:02:43.5]} 13. Qh4 {[%clk 0:02:44.8]} 13... Nxd5 {[%clk 0:02:42.5]}
14. Qxd8 {[%clk 0:02:41.2]} 14... Rfxd8 {[%clk 0:02:42]} 15. Bf3 {[%clk
0:02:41]} 15... Rac8 {[%clk 0:02:26.4]} 16. Rac1 {[%clk 0:02:37.4]} 16... Nxc3
{[%clk 0:02:11.8]} 17. Bxb7 {[%clk 0:02:28.6]} 17... Ne2+ {[%clk 0:02:09.9]} 18.
Kh1 {[%clk 0:02:30.1]} 18... Nxc1 {[%clk 0:02:09.4]} 19. Bxc8 {[%clk 0:02:29.8]}
19... Nd3 {[%clk 0:01:54.9]} 20. Bxe6 {[%clk 0:01:59.1]} 20... fxe6 {[%clk
0:01:47.6]} 21. Bc3 {[%clk 0:01:55.6]} 21... Nxf2+ {[%clk 0:01:45.3]} 22. Kg1
{[%clk 0:01:54.8]} 22... Bxe3 {[%clk 0:01:44.2]} 23. Re1 {[%clk 0:01:53.4]}
23... Bc5 {[%clk 0:01:38]} 24. b4 {[%clk 0:01:54.3]} 24... Nd3+ {[%clk
0:01:33.7]} 25. bxc5 {[%clk 0:01:55.5]} 25... Nxe1 {[%clk 0:01:34.6]} 26. Bxe1
{[%clk 0:01:57.4]} 26... bxc5 {[%clk 0:01:35.4]} 27. Kf2 {[%clk 0:01:58.9]}
27... Kf7 {[%clk 0:01:33.8]} 28. Ke3 {[%clk 0:02:00.5]} 28... Rd4 {[%clk
0:01:31.5]} 29. Bc3 {[%clk 0:02:01.5]} 29... e5 {[%clk 0:01:32.3]} 0-1

[Event "*** Titled Tuesday Blitz"]
[Site "Chess.com"]
[Date "2020.01.07"]
[Round "2"]
[White "garfield_pg"]
[Black "wannabe2700"]
[Result "0-1"]
[WhiteElo "2352"]
[BlackElo "2761"]
[TimeControl "180+2"]
[EndTime "13:22:13 PST"]
[Termination "wannabe2700 won by resignation"]

1. e4 {[%clk 0:02:50.3]} 1... e6 {[%clk 0:03:00]} 2. d4 {[%clk 0:02:50.3]} 2...
d5 {[%clk 0:03:01.5]} 3. Nc3 {[%clk 0:02:50.8]} 3... Nf6 {[%clk 0:03:02.2]} 4.
Bg5 {[%clk 0:02:50.8]} 4... dxe4 {[%clk 0:03:02.7]} 5. Nxe4 {[%clk 0:02:45.4]}
5... Nbd7 {[%clk 0:03:03.5]} 6. Nxf6+ {[%clk 0:02:40.5]} 6... Nxf6 {[%clk
0:03:04.3]} 7. Bd3 {[%clk 0:02:41.2]} 7... h6 {[%clk 0:03:02.5]} 8. Bh4 {[%clk
0:02:41.8]} 8... c5 {[%clk 0:03:03.1]} 9. Nf3 {[%clk 0:02:38.2]} 9... cxd4
{[%clk 0:03:03.8]} 10. Qe2 {[%clk 0:02:28.5]} 10... Bb4+ {[%clk 0:02:56.4]} 11.
Kf1 {[%clk 0:02:23.1]} 11... O-O {[%clk 0:02:52.8]} 12. Bxf6 {[%clk 0:01:27]}
12... Qxf6 {[%clk 0:02:50.5]} 13. Qe4 {[%clk 0:01:28.9]} 13... Rd8 {[%clk
0:02:47.5]} 14. Rd1 {[%clk 0:01:25.2]} 14... g6 {[%clk 0:02:45.6]} 15. h4 {[%clk
0:01:20.7]} 15... h5 {[%clk 0:02:46.3]} 16. Ne5 {[%clk 0:01:00.1]} 16... Bf8
{[%clk 0:02:39.2]} 17. Rh3 {[%clk 0:00:55.8]} 17... Bg7 {[%clk 0:02:39.1]} 18.
Nxg6 {[%clk 0:00:36.1]} 18... Qxg6 {[%clk 0:02:33.6]} 19. Qxg6 {[%clk
0:00:35.7]} 19... fxg6 {[%clk 0:02:34.6]} 20. Bxg6 {[%clk 0:00:31.2]} 20... e5
{[%clk 0:02:35.3]} 21. Rf3 {[%clk 0:00:27.5]} 21... Bg4 {[%clk 0:02:35.8]} 0-1

[Event "*** Titled Tuesday Blitz"]
[Site "Chess.com"]
[Date "2020.01.07"]
[Round "2"]
[White "Korona_91"]
[Black "earling8018"]
[Result "1-0"]
[WhiteElo "2388"]
[BlackElo "2059"]
[TimeControl "180+2"]
[EndTime "13:22:25 PST"]
[Termination "Korona_91 won by resignation"]

1. e4 {[%clk 0:03:00.8]} 1... e5 {[%clk 0:03:00.6]} 2. Nf3 {[%clk 0:03:01.6]}
2... Nc6 {[%clk 0:03:01]} 3. Bc4 {[%clk 0:03:02.3]} 3... Nf6 {[%clk 0:03:00.8]}
4. d3 {[%clk 0:03:02.7]} 4... h6 {[%clk 0:03:00.3]} 5. c3 {[%clk 0:03:02.8]}
5... d6 {[%clk 0:02:59.2]} 6. a4 {[%clk 0:03:02.8]} 6... g6 {[%clk 0:02:56]} 7.
Nbd2 {[%clk 0:03:02.1]} 7... Bg7 {[%clk 0:02:56.7]} 8. O-O {[%clk 0:03:02.6]}
8... O-O {[%clk 0:02:55.1]} 9. Re1 {[%clk 0:03:03.7]} 9... Qe7 {[%clk
0:02:47.8]} 10. d4 {[%clk 0:03:03.2]} 10... Nd7 {[%clk 0:02:39.2]} 11. Nf1
{[%clk 0:03:00.2]} 11... Nb6 {[%clk 0:02:37.3]} 12. Bb5 {[%clk 0:02:59.2]} 12...
Nd8 {[%clk 0:02:17.5]} 13. b3 {[%clk 0:02:56.6]} 13... c6 {[%clk 0:02:18]} 14.
Bd3 {[%clk 0:02:56.2]} 14... Ne6 {[%clk 0:02:16.5]} 15. dxe5 {[%clk 0:02:56.9]}
15... dxe5 {[%clk 0:02:15.8]} 16. Ba3 {[%clk 0:02:57.4]} 16... c5 {[%clk
0:02:16.9]} 17. a5 {[%clk 0:02:55.4]} 17... Nd7 {[%clk 0:02:11.9]} 18. Ne3
{[%clk 0:02:55.3]} 18... Rd8 {[%clk 0:01:55.9]} 19. Nd5 {[%clk 0:02:55.5]} 19...
Qd6 {[%clk 0:01:57]} 20. b4 {[%clk 0:02:48.7]} 20... Nf6 {[%clk 0:01:30.7]} 21.
c4 {[%clk 0:02:34.2]} 21... b6 {[%clk 0:01:05.8]} 22. Bb2 {[%clk 0:02:23.4]}
22... Nd4 {[%clk 0:01:05.4]} 23. Bxd4 {[%clk 0:02:19.6]} 23... exd4 {[%clk
0:01:03]} 24. e5 {[%clk 0:02:19.8]} 24... Qc6 {[%clk 0:00:47.8]} 25. Ne7+ {[%clk
0:02:19.2]} 1-0

[Event "*** Titled Tuesday Blitz"]
[Site "Chess.com"]
[Date "2020.01.07"]
[Round "2"]
[White "AlexandraBotez"]
[Black "FrogMist"]
[Result "0-1"]
[WhiteElo "2110"]
[BlackElo "2414"]
[TimeControl "180+2"]
[EndTime "13:22:26 PST"]
[Termination "FrogMist won by resignation"]

1. d4 {[%clk 0:03:01.1]} 1... Nf6 {[%clk 0:03:00.5]} 2. c4 {[%clk 0:03:02.2]}
2... c5 {[%clk 0:03:01.7]} 3. d5 {[%clk 0:03:03.3]} 3... e6 {[%clk 0:03:03]} 4.
Nf3 {[%clk 0:03:04.2]} 4... exd5 {[%clk 0:03:04.9]} 5. cxd5 {[%clk 0:03:05.6]}
5... d6 {[%clk 0:03:06.6]} 6. Nc3 {[%clk 0:03:06.5]} 6... g6 {[%clk 0:03:08.1]}
7. Bf4 {[%clk 0:03:06]} 7... a6 {[%clk 0:03:08.8]} 8. a4 {[%clk 0:03:06.4]} 8...
Bg7 {[%clk 0:03:10.1]} 9. e3 {[%clk 0:03:05.8]} 9... O-O {[%clk 0:03:11.6]} 10.
Nd2 {[%clk 0:02:59.6]} 10... Nh5 {[%clk 0:03:05.1]} 11. Bg3 {[%clk 0:02:57.4]}
11... f5 {[%clk 0:02:57.3]} 12. Be2 {[%clk 0:02:56.3]} 12... Nxg3 {[%clk
0:02:52.9]} 13. hxg3 {[%clk 0:02:56.2]} 13... Nd7 {[%clk 0:02:52.5]} 14. f4
{[%clk 0:02:34.3]} 14... Nf6 {[%clk 0:02:50.6]} 15. Kf2 {[%clk 0:02:33.9]} 15...
Qe7 {[%clk 0:02:36.7]} 16. Bf3 {[%clk 0:02:28.8]} 16... Bd7 {[%clk 0:02:36]} 17.
a5 {[%clk 0:02:20.9]} 17... Rae8 {[%clk 0:02:32.6]} 18. Nc4 {[%clk 0:02:17.9]}
18... Bb5 {[%clk 0:02:29.3]} 19. Qe2 {[%clk 0:02:05]} 19... Bxc4 {[%clk
0:02:28.1]} 20. Qxc4 {[%clk 0:01:59.3]} 20... Qxe3+ {[%clk 0:02:29.1]} 21. Kf1
{[%clk 0:01:59.8]} 21... Ng4 {[%clk 0:01:41.2]} 22. Bxg4 {[%clk 0:01:55.2]}
22... fxg4 {[%clk 0:01:28.2]} 23. Rd1 {[%clk 0:01:36.8]} 23... Bd4 {[%clk
0:01:24.8]} 24. Qe2 {[%clk 0:01:25]} 24... Qxg3 {[%clk 0:01:24]} 0-1

[Event "*** Titled Tuesday Blitz"]
[Site "Chess.com"]
[Date "2020.01.07"]
[Round "2"]
[White "oskariot"]
[Black "goldenspine"]
[Result "0-1"]
[WhiteElo "2601"]
[BlackElo "2336"]
[TimeControl "180+2"]
[EndTime "13:22:31 PST"]
[Termination "goldenspine won by resignation"]

1. e4 {[%clk 0:03:01.9]} 1... c6 {[%clk 0:03:00.4]} 2. d4 {[%clk 0:03:02.1]}
2... d5 {[%clk 0:03:01.8]} 3. Nd2 {[%clk 0:03:04]} 3... dxe4 {[%clk 0:03:01.9]}
4. Nxe4 {[%clk 0:03:05.9]} 4... Nd7 {[%clk 0:03:02.4]} 5. Ng5 {[%clk 0:03:06.7]}
5... Ngf6 {[%clk 0:03:02.6]} 6. Bd3 {[%clk 0:03:06.9]} 6... e6 {[%clk
0:02:57.4]} 7. N1f3 {[%clk 0:03:06.2]} 7... Be7 {[%clk 0:02:58]} 8. O-O {[%clk
0:03:05]} 8... O-O {[%clk 0:02:42.7]} 9. Re1 {[%clk 0:02:46.7]} 9... h6 {[%clk
0:02:39.4]} 10. Ne4 {[%clk 0:02:47.7]} 10... Nxe4 {[%clk 0:02:34.7]} 11. Bxe4
{[%clk 0:02:49.5]} 11... Nf6 {[%clk 0:02:30.9]} 12. Bd3 {[%clk 0:02:50.8]} 12...
c5 {[%clk 0:02:30.2]} 13. dxc5 {[%clk 0:02:43.2]} 13... Bxc5 {[%clk 0:02:28.5]}
14. Qe2 {[%clk 0:02:44]} 14... b6 {[%clk 0:02:15.5]} 15. Ne5 {[%clk 0:02:44.7]}
15... Bb7 {[%clk 0:02:15]} 16. c3 {[%clk 0:02:41.1]} 16... Qd5 {[%clk 0:02:11]}
17. Nf3 {[%clk 0:02:41.9]} 17... Rad8 {[%clk 0:02:07.1]} 18. Bc4 {[%clk
0:02:42.7]} 18... Qh5 {[%clk 0:02:07.7]} 19. Bf4 {[%clk 0:02:42.4]} 19... Qg4
{[%clk 0:01:31]} 20. Bg3 {[%clk 0:02:41.4]} 20... Bxf3 {[%clk 0:01:11.9]} 21.
Qxf3 {[%clk 0:02:39.7]} 21... Qxc4 {[%clk 0:01:11.5]} 22. Rad1 {[%clk
0:02:35.1]} 22... Rxd1 {[%clk 0:01:01.7]} 23. Rxd1 {[%clk 0:02:35.8]} 23... Qe4
{[%clk 0:00:53.2]} 24. h3 {[%clk 0:02:24.3]} 24... Qxf3 {[%clk 0:00:53.4]} 25.
gxf3 {[%clk 0:02:25.9]} 25... Rc8 {[%clk 0:00:53.8]} 26. Kg2 {[%clk 0:02:26.3]}
26... Kf8 {[%clk 0:00:52.3]} 27. c4 {[%clk 0:02:23.8]} 27... Ke7 {[%clk
0:00:52.8]} 28. b3 {[%clk 0:02:24.9]} 28... a5 {[%clk 0:00:53.3]} 29. h4 {[%clk
0:02:24.6]} 29... Rd8 {[%clk 0:00:49.9]} 30. Re1 {[%clk 0:02:25.6]} 30... Rd2
{[%clk 0:00:50.5]} 0-1

[Event "*** Titled Tuesday Blitz"]
[Site "Chess.com"]
[Date "2020.01.07"]
[Round "2"]
[White "StephenDedalus83"]
[Black "Gogolev_Artemy"]
[Result "1-0"]
[WhiteElo "2712"]
[BlackElo "2453"]
[TimeControl "180+2"]
[EndTime "13:22:40 PST"]
[Termination "StephenDedalus83 won by resignation"]

1. g3 {[%clk 0:03:01.9]} 1... g6 {[%clk 0:02:59.9]} 2. Bg2 {[%clk 0:03:02.7]}
2... Bg7 {[%clk 0:03:01.5]} 3. d3 {[%clk 0:03:03.7]} 3... Nf6 {[%clk 0:03:01.3]}
4. e4 {[%clk 0:03:02.7]} 4... d6 {[%clk 0:03:01.5]} 5. f4 {[%clk 0:03:03.5]}
5... O-O {[%clk 0:03:01.1]} 6. Nf3 {[%clk 0:03:04.3]} 6... c5 {[%clk 0:03:02.5]}
7. O-O {[%clk 0:03:03.7]} 7... Nc6 {[%clk 0:03:03.8]} 8. h3 {[%clk 0:03:02.6]}
8... Bd7 {[%clk 0:03:02.7]} 9. g4 {[%clk 0:03:03.5]} 9... b5 {[%clk 0:03:02.9]}
10. f5 {[%clk 0:03:04]} 10... Ne8 {[%clk 0:03:03.7]} 11. Nc3 {[%clk 0:03:02]}
11... b4 {[%clk 0:03:02.9]} 12. Ne2 {[%clk 0:03:02.4]} 12... a5 {[%clk
0:03:02.1]} 13. Ng3 {[%clk 0:03:00.5]} 13... a4 {[%clk 0:03:03]} 14. Rb1 {[%clk
0:03:00.2]} 14... a3 {[%clk 0:03:03.4]} 15. b3 {[%clk 0:03:00.4]} 15... Nc7
{[%clk 0:03:03.7]} 16. Be3 {[%clk 0:02:59.7]} 16... Nb5 {[%clk 0:03:04.3]} 17.
Qc1 {[%clk 0:02:57.5]} 17... Nc3 {[%clk 0:03:04.8]} 18. Ra1 {[%clk 0:02:58.3]}
18... Nd4 {[%clk 0:03:01.2]} 19. Nxd4 {[%clk 0:02:56.6]} 19... cxd4 {[%clk
0:03:02.2]} 20. Bh6 {[%clk 0:02:57.1]} 20... Be5 {[%clk 0:03:00.4]} 21. Bf4
{[%clk 0:02:53.5]} 21... Bc6 {[%clk 0:02:45.5]} 22. Bxe5 {[%clk 0:02:49.3]}
22... dxe5 {[%clk 0:02:46]} 23. Qh6 {[%clk 0:02:49.9]} 23... Qe8 {[%clk
0:02:28.4]} 24. g5 {[%clk 0:02:37.2]} 24... f6 {[%clk 0:02:29]} 25. h4 {[%clk
0:02:38.1]} 25... Qf7 {[%clk 0:02:28.3]} 26. h5 {[%clk 0:02:28.5]} 26... Qg7
{[%clk 0:02:27.9]} 27. hxg6 {[%clk 0:02:28.2]} 27... hxg6 {[%clk 0:02:26.3]} 28.
fxg6 {[%clk 0:02:28.2]} 28... Be8 {[%clk 0:02:18.9]} 29. Nf5 {[%clk 0:02:18]}
29... Qxh6 {[%clk 0:02:18.9]} 30. Nxe7+ {[%clk 0:02:12.9]} 30... Kg7 {[%clk
0:02:17.8]} 31. gxh6+ {[%clk 0:02:13.7]} 31... Kxh6 {[%clk 0:02:18.8]} 32. Kf2
{[%clk 0:02:11.4]} 32... Bxg6 {[%clk 0:02:15]} 33. Rh1+ {[%clk 0:02:11]} 33...
Kg7 {[%clk 0:02:15.1]} 34. Bh3 {[%clk 0:01:44.3]} 34... Ra7 {[%clk 0:01:52.6]}
35. Nxg6 {[%clk 0:01:43.4]} 35... Kxg6 {[%clk 0:01:54.5]} 36. Bf5+ {[%clk
0:01:44]} 36... Kf7 {[%clk 0:01:46.6]} 37. Rh7+ {[%clk 0:01:44.5]} 37... Ke8
{[%clk 0:01:47.4]} 38. Rxa7 {[%clk 0:01:45.2]} 1-0

[Event "*** Titled Tuesday Blitz"]
[Site "Chess.com"]
[Date "2020.01.07"]
[Round "2"]
[White "Korchmar_Vasiliy"]
[Black "SiddharthGMJagadeesh"]
[Result "1-0"]
[WhiteElo "2791"]
[BlackElo "2544"]
[TimeControl "180+2"]
[EndTime "13:22:47 PST"]
[Termination "Korchmar_Vasiliy won by resignation"]

1. d4 {[%clk 0:03:01.9]} 1... Nf6 {[%clk 0:03:00.7]} 2. c4 {[%clk 0:03:02.5]}
2... e6 {[%clk 0:03:02]} 3. g3 {[%clk 0:03:03.7]} 3... d5 {[%clk 0:03:01.8]} 4.
Bg2 {[%clk 0:03:05.1]} 4... Bb4+ {[%clk 0:03:02.9]} 5. Nd2 {[%clk 0:03:05.7]}
5... O-O {[%clk 0:03:02.2]} 6. Nf3 {[%clk 0:03:06.9]} 6... dxc4 {[%clk
0:03:02.6]} 7. Qc2 {[%clk 0:03:06]} 7... b5 {[%clk 0:03:03.8]} 8. a4 {[%clk
0:03:06.4]} 8... c6 {[%clk 0:02:58.6]} 9. axb5 {[%clk 0:03:07.7]} 9... cxb5
{[%clk 0:03:00]} 10. Ng5 {[%clk 0:03:08.3]} 10... h6 {[%clk 0:02:57.2]} 11. h4
{[%clk 0:03:09.7]} 11... Qxd4 {[%clk 0:02:46.8]} 12. Bxa8 {[%clk 0:03:08]} 12...
c3 {[%clk 0:02:36.3]} 13. bxc3 {[%clk 0:03:06.4]} 13... Qxc3 {[%clk 0:02:38.2]}
14. Qb1 {[%clk 0:02:55.4]} 14... Nc6 {[%clk 0:02:25.5]} 15. Bxc6 {[%clk
0:02:50.3]} 15... Qxc6 {[%clk 0:02:27.4]} 16. Nf3 {[%clk 0:02:50.5]} 16... a5
{[%clk 0:02:23.6]} 17. O-O {[%clk 0:02:50.8]} 17... Bb7 {[%clk 0:02:24.7]} 18.
Rd1 {[%clk 0:02:26.4]} 18... Rd8 {[%clk 0:02:16.4]} 19. Ra2 {[%clk 0:02:17.7]}
19... Ne4 {[%clk 0:02:10.1]} 20. Rc2 {[%clk 0:02:03.4]} 20... Nc3 {[%clk
0:02:09.9]} 21. Rxc3 {[%clk 0:02:01.3]} 21... Bxc3 {[%clk 0:02:11.8]} 22. Qc2
{[%clk 0:01:46.7]} 22... b4 {[%clk 0:01:57]} 23. Nb3 {[%clk 0:01:39.3]} 23...
Rxd1+ {[%clk 0:01:53.4]} 24. Qxd1 {[%clk 0:01:41.2]} 24... a4 {[%clk 0:01:55.3]}
25. Na5 {[%clk 0:01:38.9]} 25... Qd5 {[%clk 0:01:56.6]} 26. Qxa4 {[%clk
0:01:37.4]} 26... Ba6 {[%clk 0:01:52.5]} 27. Nc6 {[%clk 0:01:36.2]} 27... Qc4
{[%clk 0:01:39.2]} 28. Ne7+ {[%clk 0:01:28.2]} 28... Kf8 {[%clk 0:01:36.2]} 29.
Qd7 {[%clk 0:01:29.3]} 29... g6 {[%clk 0:01:25.1]} 30. Bxh6+ {[%clk 0:01:25.8]}
1-0

[Event "*** Titled Tuesday Blitz"]
[Site "Chess.com"]
[Date "2020.01.07"]
[Round "2"]
[White "kingofthenil"]
[Black "secretsuperstar7"]
[Result "1-0"]
[WhiteElo "2478"]
[BlackElo "2211"]
[TimeControl "180+2"]
[EndTime "13:22:50 PST"]
[Termination "kingofthenil won by checkmate"]

1. e4 {[%clk 0:03:01.9]} 1... c5 {[%clk 0:03:00.1]} 2. d3 {[%clk 0:03:02.5]}
2... Nc6 {[%clk 0:02:54.2]} 3. g3 {[%clk 0:03:03.6]} 3... Nf6 {[%clk 0:02:53]}
4. Bg2 {[%clk 0:03:05]} 4... d6 {[%clk 0:02:52.4]} 5. f4 {[%clk 0:03:05.8]} 5...
g6 {[%clk 0:02:52.7]} 6. Nf3 {[%clk 0:03:07.7]} 6... Bg7 {[%clk 0:02:53.9]} 7.
O-O {[%clk 0:03:08.5]} 7... O-O {[%clk 0:02:54.4]} 8. Nc3 {[%clk 0:03:10.4]}
8... Rb8 {[%clk 0:02:54.3]} 9. h3 {[%clk 0:03:11.5]} 9... b5 {[%clk 0:02:54.3]}
10. g4 {[%clk 0:03:12.9]} 10... a5 {[%clk 0:02:50.5]} 11. Kh1 {[%clk 0:03:12.1]}
11... Ba6 {[%clk 0:02:50.1]} 12. Be3 {[%clk 0:03:11.4]} 12... b4 {[%clk
0:02:41.6]} 13. Ne2 {[%clk 0:03:11.9]} 13... c4 {[%clk 0:02:38]} 14. b3 {[%clk
0:03:07.9]} 14... Nd7 {[%clk 0:02:33.5]} 15. dxc4 {[%clk 0:02:30.7]} 15... Bxa1
{[%clk 0:02:32.6]} 16. Qxa1 {[%clk 0:02:30.5]} 16... Nc5 {[%clk 0:02:31]} 17.
Ng3 {[%clk 0:02:30.9]} 17... Bb7 {[%clk 0:02:26.1]} 18. f5 {[%clk 0:02:29.2]}
18... Re8 {[%clk 0:02:12.4]} 19. Ng5 {[%clk 0:02:12.1]} 19... Ne5 {[%clk
0:02:02.2]} 20. Bxc5 {[%clk 0:02:11.5]} 20... dxc5 {[%clk 0:01:50.3]} 21. Qxe5
{[%clk 0:02:10.4]} 21... Rf8 {[%clk 0:01:32.4]} 22. Qxc5 {[%clk 0:02:04.1]}
22... Qd2 {[%clk 0:01:30]} 23. Qxe7 {[%clk 0:01:53.4]} 23... Rbe8 {[%clk
0:01:19.9]} 24. Qf6 {[%clk 0:01:51.2]} 24... Qxc2 {[%clk 0:01:08.6]} 25. Nh5
{[%clk 0:01:39.1]} 25... gxh5 {[%clk 0:01:05.9]} 26. Qh6 {[%clk 0:01:38.8]}
26... Re7 {[%clk 0:00:55.5]} 27. Qxh7# {[%clk 0:01:38.2]} 1-0